fUSD/lending_fUSD_20250623
["ID","MTS","AMOUNT","RATE_DAILY","PERIOD"]
[367084214,1750651886287,-490.0,0.00033698,7]
[367084215,1750651886296,-490.0,0.00033698,7]
[367084216,1750651886306,-2870.387257,0.00033698,7]
[367084217,1750651886316,-490.0,0.00033698,7]
[367084218,1750651886325,-1573.26,0.00033698,7]
[367084219,1750651886335,-517.36693272,0.00033698,7]
[367084220,1750651886345,-151.476984,0.00033698,7]
[367084221,1750651886355,-518.58,0.00033698,7]
[367084222,1750651886365,-490.0,0.00033698,7]
[367084223,1750651886376,-490.0,0.00033698,7]
[367084224,1750651886388,-499.29570187,0.00033698,7]
[367084225,1750651886398,-490.0,0.00033698,7]
[367084226,1750651886408,-490.0,0.00033698,7]
[367084227,1750651886417,-501.90227007,0.00033698,7]
[367084228,1750651886428,-1067.54,0.00033698,7]
[367084229,1750651886437,-490.0,0.00033698,7]
[367084230,1750651886448,-490.0,0.00033698,7]
[367084231,1750651886458,-1396.319128,0.00033698,7]
[367084232,1750651886469,-802.23,0.00033698,7]
[367084233,1750651886479,-675.08,0.00033698,7]
[367084234,1750651886488,-490.0,0.00033698,7]
[367084235,1750651886497,-490.0,0.00033698,7]
[367084236,1750651886507,-490.0,0.00033698,7]
[367084237,1750651886516,-635.29162801,0.00033698,7]
[367084238,1750651886525,-427.54138622,0.00033698,7]
[367084239,1750651886535,-705.94,0.00033698,7]
[367084240,1750651886544,-490.0,0.00033698,7]
[367084241,1750651886553,-6348.159924,0.00033698,7]
[367084242,1750651886563,-909.48,0.00033698,7]
[367084243,1750651886573,-490.0,0.00033698,7]
[367084244,1750651886582,-490.0,0.00033698,7]
[367084245,1750651886591,-490.0,0.00033698,7]
[367084246,1750651886601,-687.8,0.00033698,7]
[367084247,1750651886610,-934.07,0.00033698,7]
[367084248,1750651886619,-490.0,0.00033698,7]
[367084249,1750651886629,-490.0,0.00033698,7]
[367084250,1750651886638,-490.0,0.00033698,7]
[367084251,1750651886648,-490.0,0.00033698,7]
[367084252,1750651886657,-954.17,0.00033698,7]
[367084253,1750651886666,-490.0,0.00033698,7]
[367084254,1750651886675,-490.0,0.00033698,7]
[367084255,1750651886685,-490.0,0.00033698,7]
[367084256,1750651886695,-490.0,0.00033698,7]
[367084257,1750651886704,-490.0,0.00033698,7]
[367084258,1750651886713,-1653.17,0.00033698,7]
[367084259,1750651886724,-708.58,0.00033698,7]
[367084260,1750651886734,-490.0,0.00033698,7]
[367084261,1750651886744,-490.0,0.00033698,7]
[367084262,1750651886753,-1446.18,0.00033698,7]
[367084263,1750651886763,-490.0,0.00033698,7]
[367084264,1750651886773,-751.75,0.00033698,7]
[367084265,1750651886782,-1861.33,0.00033698,7]
[367084266,1750651886792,-702.12,0.00033698,7]
[367084267,1750651886802,-490.0,0.00033698,7]
[367084268,1750651886812,-1430.82,0.00033698,7]
[367084269,1750651886823,-490.0,0.00033698,7]
[367084270,1750651886833,-490.0,0.00033698,7]
[367084271,1750651886843,-842.79,0.00033698,7]
[367084272,1750651886852,-1853.35,0.00033698,7]
[367084273,1750651886863,-426.13047464,0.00033698,7]
[367084274,1750651886873,-490.0,0.00033698,7]
[367084275,1750651886883,-490.0,0.00033698,7]
[367084276,1750651886893,-1821.07,0.00033698,7]
[367084277,1750651886903,-490.0,0.00033698,7]
[367084278,1750651886913,-902.44,0.00033698,7]
[367084279,1750651886923,-1855.08,0.00033698,7]
[367084280,1750651886933,-545.01610335,0.00033698,2]
[367084281,1750651886942,-255.87206011,0.00033698,7]
[367084282,1750651886952,-1488.74,0.00033698,7]
[367084283,1750651886963,-490.0,0.00033698,7]
[367084284,1750651886973,-490.0,0.00033698,7]
[367084285,1750651886983,-490.0,0.00033698,7]
[367084286,1750651886993,-490.0,0.00033698,7]
[367084287,1750651887002,-490.0,0.00033698,2]
[367084288,1750651887012,-490.0,0.00033698,7]
[367084289,1750651887022,-885.56,0.00033698,7]
[367084290,1750651887031,-2472.17,0.00033698,7]
[367084291,1750651887040,-490.0,0.00033698,7]
[367084292,1750651887050,-541.36,0.00033698,7]
[367084293,1750651887061,-905.1,0.00033698,7]
[367084294,1750651887075,-490.0,0.00033698,7]
[367084295,1750651887085,-490.0,0.00033698,7]
[367084296,1750651887095,-776.6,0.00033698,7]
[367084297,1750651887105,-407.66316328,0.00033698,7]
[367084298,1750651887114,-689.14,0.00033698,7]
[367084299,1750651887124,-888.92,0.00033698,7]
[367084300,1750651887134,-490.0,0.00033698,7]
[367084301,1750651887145,-490.0,0.00033698,7]
[367084302,1750651887155,-639.4,0.00033698,7]
[367084303,1750651887164,-724.93,0.00033698,7]
[367084304,1750651887174,-1730.63,0.00033698,7]
[367084305,1750651887184,-2066.58,0.00033698,7]
[367084306,1750651887194,-556.4,0.00033698,7]
[367084307,1750651887204,-300.61263996,0.00033698,7]
[367084308,1750651887214,-490.0,0.00033698,7]
[367084309,1750651887224,-757.27,0.00033698,7]
[367084310,1750651887234,-1720.77,0.00033698,7]
[367084311,1750651887244,-490.0,0.00033698,7]
[367084312,1750651887254,-1168.77,0.00033698,7]
[367084313,1750651887264,-1395.99,0.00033698,7]
[367084314,1750651887274,-1495.08,0.00033698,7]
[367084315,1750651887284,-490.0,0.00033698,7]
[367084316,1750651887294,-490.0,0.00033698,7]
[367084317,1750651887304,-1032.12,0.00033698,7]
[367084318,1750651887313,-1555.31,0.00033698,7]
[367084319,1750651887323,-490.0,0.00033698,7]
[367084320,1750651887333,-490.0,0.00033698,7]
[367084321,1750651887343,-590.43,0.00033698,7]
[367084322,1750651887353,-449.43,0.00033698,7]
[367084323,1750651887364,-2019.71,0.00033698,7]
[367084324,1750651887374,-684.89,0.00033698,7]
[367084325,1750651887384,-312.96024292,0.00033698,7]
[367084326,1750651887395,-490.0,0.00033698,7]
[367084327,1750651887405,-652.14,0.00033698,7]
[367084328,1750651887416,-1054.24,0.00033698,7]
[367084329,1750651887425,-234.90411573,0.00033698,7]
[367084330,1750651887435,-772.51,0.00033698,7]
[367084331,1750651887445,-2635.72,0.00033698,7]
[367084332,1750651887455,-490.0,0.00033698,7]
[367084333,1750651887465,-490.0,0.00033698,7]
[367084334,1750651887475,-553.49,0.00033698,7]
[367084335,1750651887485,-742.07,0.00033698,7]
[367084336,1750651887495,-490.0,0.00033698,7]
[367084337,1750651887505,-976.25,0.00033698,7]
[367084338,1750651887515,-541.85,0.00033698,7]
[367084339,1750651887525,-490.0,0.00033698,7]
[367084340,1750651887535,-575.38,0.00033698,7]
[367084341,1750651887545,-490.0,0.00033698,7]
[367084342,1750651887555,-490.0,0.00033698,7]
[367084343,1750651887565,-510.23,0.00033698,7]
[367084344,1750651887575,-1555.69,0.00033698,7]
[367084345,1750651887585,-490.0,0.00033698,7]
[367084346,1750651887595,-490.0,0.00033698,7]
[367084347,1750651887605,-1072.09,0.00033698,7]
[367084348,1750651887614,-490.0,0.00033698,7]
[367084349,1750651887624,-1153.76,0.00033698,7]
[367084350,1750651887634,-993.49,0.00033698,7]
[367084351,1750651887644,-1112.84,0.00033698,7]
[367084352,1750651887654,-524.762286,0.00033698,7]
[367084353,1750651887664,-1935.06,0.00033698,7]
[367084354,1750651887673,-1374.96,0.00033698,7]
[367084355,1750651887683,-540.01,0.00033698,7]
[367084356,1750651887692,-1492.03,0.00033698,7]
[367084357,1750651887702,-490.0,0.00033698,7]
[367084358,1750651887711,-1621.55,0.00033698,7]
[367084359,1750651887721,-1594.72,0.00033698,7]
[367084360,1750651887731,-490.0,0.00033698,7]
[367084361,1750651887740,-653.96,0.00033698,7]
[367084362,1750651887750,-218.99347984,0.00033698,7]
[367084363,1750651887759,-510.42,0.00033698,7]
[367084364,1750651887769,-490.0,0.00033698,7]
[367084365,1750651887779,-937.64,0.00033698,7]
[367084366,1750651887788,-884.34,0.00033698,7]
[367084367,1750651887798,-490.0,0.00033698,7]
[367084368,1750651887807,-504.43852171,0.00033698,7]
[367084369,1750651887817,-663.66,0.00033698,7]
[367084370,1750651887826,-490.0,0.00033698,7]
[367084371,1750651887835,-252.44206122,0.00033698,7]
[367084372,1750651887845,-490.0,0.00033698,7]
[367084373,1750651887855,-490.0,0.00033698,7]
[367084374,1750651887864,-490.0,0.00033698,7]
[367084375,1750651887874,-490.0,0.00033698,7]
[367084376,1750651887883,-1305.74,0.00033698,7]
[367084377,1750651887892,-558.41,0.00033698,7]
[367084378,1750651887902,-1481.09,0.00033698,7]
[367084379,1750651887912,-509.05902097,0.00033698,7]
[367084380,1750651887922,-1609.71,0.00033698,7]
[367084381,1750651887931,-490.0,0.00033698,7]
[367084382,1750651887941,-490.0,0.00033698,7]
[367084383,1750651887950,-268.64374332,0.00033698,7]
[367084384,1750651887960,-1292.86,0.00033698,7]
[367084385,1750651887970,-1403.74,0.00033698,7]
[367084386,1750651887980,-1402.76,0.00033698,7]
[367084387,1750651887990,-490.0,0.00033698,7]
[367084388,1750651888000,-490.0,0.00033698,7]
[367084389,1750651888010,-490.0,0.00033698,7]
[367084390,1750651888019,-490.0,0.00033698,7]
[367084391,1750651888028,-945.86,0.00033698,7]
[367084392,1750651888038,-1938.14,0.00033698,7]
[367084393,1750651888048,-490.0,0.00033698,7]
[367084394,1750651888057,-3312.04,0.00033698,2]
[367084395,1750651888069,-155.272639,0.00033698,7]
[367084396,1750651888080,-504.1112088,0.00033698,7]
[367084397,1750651888089,-1700.0,0.00033698,7]
[367084398,1750651888099,-490.0,0.00033698,7]
[367084399,1750651888109,-490.0,0.00033698,7]
[367084400,1750651888119,-490.0,0.00033698,7]
[367084401,1750651888128,-803.65,0.00033698,7]
[367084402,1750651888138,-490.0,0.00033698,7]
[367084403,1750651888148,-490.0,0.00033698,7]
[367084404,1750651888158,-490.0,0.00033698,7]
[367084405,1750651888167,-490.0,0.00033698,7]
[367084406,1750651888177,-887.18,0.00033698,7]
[367084407,1750651888187,-560.0,0.00033698,7]
[367084408,1750651888197,-490.0,0.00033698,7]
[367084409,1750651888207,-490.0,0.00033698,7]
[367084410,1750651888216,-490.0,0.00033698,7]
[367084411,1750651888227,-904.24,0.00033698,7]
[367084412,1750651888237,-2151.85,0.00033698,7]
[367084413,1750651888246,-490.0,0.00033698,7]
[367084414,1750651888256,-814.28,0.00033698,7]
[367084415,1750651888266,-1680.23,0.00033698,7]
[367084416,1750651888276,-702.73,0.00033698,7]
[367084417,1750651888285,-490.0,0.00033698,7]
[367084418,1750651888295,-1732.88,0.00033698,7]
[367084419,1750651888305,-1436.48,0.00033698,7]
[367084420,1750651888315,-490.0,0.00033698,7]
[367084421,1750651888325,-1070.3,0.00033698,7]
[367084422,1750651888334,-1394.64,0.00033698,7]
[367084423,1750651888343,-490.0,0.00033698,7]
[367084424,1750651888353,-490.0,0.00033698,7]
[367084425,1750651888363,-1030.86,0.00033698,7]
[367084426,1750651888372,-210.86165495,0.00033698,7]
[367084427,1750651888382,-490.0,0.00033698,7]
[367084428,1750651888392,-218.77048822,0.00033698,7]
[367084429,1750651888401,-1131.44,0.00033698,7]
[367084430,1750651888411,-490.0,0.00033698,7]
[367084431,1750651888420,-1799.96,0.00033698,7]
[367084432,1750651888430,-490.0,0.00033698,7]
[367084433,1750651888439,-490.0,0.00033698,7]
[367084434,1750651888449,-300.44562833,0.00033698,7]
[367084435,1750651888459,-1362.29,0.00033698,7]
[367084436,1750651888469,-793.38,0.00033698,7]
[367084437,1750651888479,-1038.04,0.00033698,7]
[367084438,1750651888489,-461.60974741,0.00033698,7]
[367084439,1750651888499,-579.75,0.00033698,7]
[367084440,1750651888509,-287.49311077,0.00033698,7]
[367084441,1750651888519,-539.42,0.00033698,7]
[367084442,1750651888529,-1073.78,0.00033698,7]
[367084443,1750651888540,-2460.83,0.00033698,7]
[367084444,1750651888551,-362.28422694,0.00033698,7]
[367084445,1750651888561,-490.0,0.00033698,7]
[367084446,1750651888573,-514.13,0.00033698,7]
[367084447,1750651888583,-490.0,0.00033698,7]
[367084448,1750651888593,-963.05,0.00033698,7]
[367084449,1750651888603,-490.0,0.00033698,7]
[367084450,1750651888613,-490.0,0.00033698,7]
[367084451,1750651888624,-969.7,0.00033698,7]
[367084452,1750651888634,-1697.22,0.00033698,7]
[367084453,1750651888644,-522.41223128,0.00033698,2]
[367084454,1750651888655,-921.5,0.00033698,7]
[367084455,1750651888665,-1261.93,0.00033698,7]
[367084456,1750651888676,-193.13315156,0.00033698,7]
[367084457,1750651888687,-906.2,0.00033698,7]
[367084458,1750651888697,-1228.77,0.00033698,7]
[367084459,1750651888706,-490.0,0.00033698,7]
[367084460,1750651888716,-490.0,0.00033698,7]
[367084461,1750651888726,-1618.54,0.00033698,7]
[367084462,1750651888736,-1142.19,0.00033698,7]
[367084463,1750651888745,-1230.14,0.00033698,7]
[367084464,1750651888755,-490.0,0.00033698,7]
[367084465,1750651888765,-647.57,0.00033698,7]
[367084466,1750651888775,-1768.81,0.00033698,7]
[367084467,1750651888785,-1931.12,0.00033698,7]
[367084468,1750651888795,-592.66,0.00033698,7]
[367084469,1750651888805,-490.0,0.00033698,7]
[367084470,1750651888815,-490.0,0.00033698,7]
[367084471,1750651888825,-242.76854254,0.00033698,7]
[367084472,1750651888835,-550.64,0.00033698,7]
[367084473,1750651888846,-1406.03,0.00033698,7]
[367084474,1750651888856,-1399.34,0.00033698,7]
[367084475,1750651888866,-1769.53,0.00033698,7]
[367084476,1750651889095,-490.0,0.00033698,7]
[367084477,1750651889105,-239.25676251,0.00033698,7]
[367084478,1750651889115,-490.0,0.00033698,7]
[367084479,1750651889124,-3170.22,0.00033698,7]
[367084480,1750651889133,-1405.29,0.00033698,7]
[367084481,1750651889143,-490.0,0.00033698,7]
[367084482,1750651889153,-1096.6,0.00033698,7]
[367084483,1750651889162,-490.0,0.00033698,7]
[367084484,1750651889172,-490.0,0.00033698,7]
[367084485,1750651889182,-1050.91,0.00033698,7]
[367084486,1750651889191,-1096.11,0.00033698,7]
[367084487,1750651889200,-239.45723296,0.00033698,7]
[367084488,1750651889210,-621.56,0.00033698,7]
[367084489,1750651889219,-1064.72,0.00033698,7]
[367084490,1750651889229,-1199.29,0.00033698,7]
[367084491,1750651889238,-787.56,0.00033698,7]
[367084492,1750651889247,-490.0,0.00033698,7]
[367084493,1750651889257,-490.0,0.00033698,7]
[367084494,1750651889266,-490.0,0.00033698,7]
[367084495,1750651889276,-1044.99,0.00033698,7]
[367084496,1750651889286,-669.53,0.00033698,7]
[367084497,1750651889296,-490.0,0.00033698,7]
[367084498,1750651889305,-490.0,0.00033698,7]
[367084499,1750651889314,-490.0,0.00033698,7]
[367084500,1750651889324,-819.91,0.00033698,7]
[367084501,1750651889333,-496.44,0.00033698,7]
[367084502,1750651889343,-1119.02,0.00033698,7]
[367084503,1750651889352,-490.0,0.00033698,7]
[367084504,1750651889362,-1131.27,0.00033698,7]
[367084505,1750651889371,-490.0,0.00033698,7]
[367084506,1750651889380,-2219.26,0.00033698,7]
[367084507,1750651889391,-819.29,0.00033698,7]
[367084508,1750651889402,-490.0,0.00033698,7]
[367084509,1750651889413,-490.0,0.00033698,7]
[367084510,1750651889423,-1303.76,0.00033698,7]
[367084511,1750651889434,-490.0,0.00033698,7]
[367084512,1750651889444,-490.0,0.00033698,7]
[367084513,1750651889454,-833.66,0.00033698,7]
[367084514,1750651889464,-1733.14,0.00033698,7]
[367084515,1750651889474,-1420.47,0.00033698,7]
[367084516,1750651889485,-558.11,0.00033698,7]
[367084517,1750651889495,-490.0,0.00033698,7]
[367084518,1750651889504,-1750.34,0.00033698,7]
[367084519,1750651889513,-953.65,0.00033698,7]
[367084520,1750651889523,-490.0,0.00033698,7]
[367084521,1750651889532,-2896.43,0.00033698,7]
[367084522,1750651889541,-490.0,0.00033698,7]
[367084523,1750651889550,-490.0,0.00033698,7]
[367084524,1750651889560,-490.0,0.00033698,7]
[367084525,1750651889569,-583.00483968,0.00033698,7]
[367084526,1750651889578,-596.68,0.00033698,7]
[367084527,1750651889588,-490.0,0.00033698,7]
[367084528,1750651889598,-1672.84,0.00033698,7]
[367084529,1750651889608,-490.0,0.00033698,7]
[367084530,1750651889618,-490.0,0.00033698,7]
[367084531,1750651889627,-873.71,0.00033698,7]
[367084532,1750651889637,-490.0,0.00033698,7]
[367084533,1750651889646,-490.0,0.00033698,7]
[367084534,1750651889656,-2413.53,0.00033698,7]
[367084535,1750651889666,-1178.2,0.00033698,7]
[367084536,1750651889675,-490.0,0.00033698,7]
[367084537,1750651889685,-490.0,0.00033698,7]
[367084538,1750651889694,-490.0,0.00033698,7]
[367084539,1750651889704,-1980.52,0.00033698,7]
[367084540,1750651889713,-490.0,0.00033698,7]
[367084541,1750651889723,-620.77,0.00033698,7]
[367084542,1750651889732,-490.0,0.00033698,7]
[367084543,1750651889741,-490.0,0.00033698,7]
[367084544,1750651889751,-490.0,0.00033698,7]
[367084545,1750651889760,-490.0,0.00033698,7]
[367084546,1750651889769,-490.0,0.00033698,7]
[367084547,1750651889779,-931.61,0.00033698,7]
[367084548,1750651889788,-1170.72,0.00033698,7]
[367084549,1750651889797,-490.0,0.00033698,7]
[367084550,1750651889807,-300.0,0.00033698,7]
[367084551,1750651889816,-490.0,0.00033698,7]
[367084552,1750651889826,-1173.45,0.00033698,7]
[367084553,1750651889835,-490.0,0.00033698,7]
[367084554,1750651889844,-490.0,0.00033698,7]
[367084555,1750651889854,-490.0,0.00033698,7]
[367084556,1750651889863,-598.94,0.00033698,7]
[367084557,1750651889872,-1538.8,0.00033698,7]
[367084558,1750651889882,-490.0,0.00033698,7]
[367084559,1750651889891,-490.0,0.00033698,7]
[367084560,1750651889900,-373.03357252,0.00033698,7]
[367084561,1750651889909,-1518.04,0.00033698,7]
[367084562,1750651889919,-490.0,0.00033698,7]
[367084563,1750651889929,-490.0,0.00033698,7]
[367084564,1750651889939,-490.0,0.00033698,7]
[367084565,1750651889948,-490.0,0.00033698,7]
[367084566,1750651889958,-490.0,0.00033698,7]
[367084567,1750651889967,-2524.12,0.00033698,7]
[367084568,1750651889977,-1253.69,0.00033698,7]
[367084569,1750651889986,-490.0,0.00033698,7]
[367084570,1750651889995,-490.0,0.00033698,7]
[367084571,1750651890004,-657.69,0.00033698,7]
[367084572,1750651890013,-490.0,0.00033698,7]
[367084573,1750651890023,-1059.4,0.00033698,7]
[367084574,1750651890033,-840.96,0.00033698,7]
[367084575,1750651890042,-490.0,0.00033698,7]
[367084576,1750651890052,-490.0,0.00033698,7]
[367084577,1750651890061,-1891.79,0.00033698,7]
[367084578,1750651890074,-490.0,0.00033698,7]
[367084579,1750651890083,-534.69,0.00033698,7]
[367084580,1750651890092,-529.23,0.00033698,7]
[367084581,1750651890102,-822.02,0.00033698,7]
[367084582,1750651890111,-724.63,0.00033698,7]
[367084583,1750651890120,-1609.08,0.00033698,7]
[367084584,1750651890129,-490.0,0.00033698,7]
[367084585,1750651890139,-490.0,0.00033698,7]
[367084586,1750651890149,-1339.61,0.00033698,7]
[367084587,1750651890158,-1572.23,0.00033698,7]
[367084588,1750651890167,-490.0,0.00033698,7]
[367084589,1750651890176,-490.0,0.00033698,7]
[367084590,1750651890186,-895.61,0.00033698,7]
[367084591,1750651890195,-860.61,0.00033698,7]
[367084592,1750651890204,-490.0,0.00033698,7]
[367084593,1750651890215,-490.0,0.00033698,7]
[367084594,1750651890224,-2665.79,0.00033698,7]
[367084595,1750651890233,-1484.2,0.00033698,7]
[367084596,1750651890243,-1861.11,0.00033698,7]
[367084597,1750651890253,-1003.54,0.00033698,7]
[367084598,1750651890263,-490.0,0.00033698,7]
[367084599,1750651890274,-1224.99,0.00033698,7]
[367084600,1750651890284,-490.0,0.00033698,7]
[367084601,1750651890295,-490.0,0.00033698,7]
[367084602,1750651890305,-490.0,0.00033698,7]
[367084603,1750651890314,-490.0,0.00033698,7]
[367084604,1750651890324,-1635.01,0.00033698,7]
[367084605,1750651890333,-490.0,0.00033698,7]
[367084606,1750651890342,-490.0,0.00033698,7]
[367084607,1750651890352,-490.0,0.00033698,7]
[367084608,1750651890361,-2657.09,0.00033698,7]
[367084609,1750651890371,-1723.79,0.00033698,7]
[367084610,1750651890381,-490.0,0.00033698,7]
[367084611,1750651890391,-490.0,0.00033698,7]
[367084612,1750651890400,-490.0,0.00033698,7]
[367084613,1750651890409,-750.93,0.00033698,7]
[367084614,1750651890419,-490.0,0.00033698,7]
[367084615,1750651890428,-490.0,0.00033698,7]
[367084616,1750651890437,-1174.24,0.00033698,7]
[367084617,1750651890447,-498.65172867,0.00033698,7]
[367084618,1750651890457,-2072.79,0.00033698,7]
[367084619,1750651890466,-490.0,0.00033698,7]
[367084620,1750651890476,-490.0,0.00033698,7]
[367084621,1750651890487,-636.1,0.00033698,7]
[367084622,1750651890497,-490.0,0.00033698,7]
[367084623,1750651890507,-714.74,0.00033698,7]
[367084624,1750651890516,-2081.51,0.00033698,7]
[367084625,1750651890525,-811.29,0.00033698,7]
[367084626,1750651890535,-1836.6,0.00033698,7]
[367084627,1750651890544,-1772.58,0.00033698,7]
[367084628,1750651890554,-1100.76,0.00033698,7]
[367084629,1750651890563,-490.0,0.00033698,7]
[367084630,1750651890573,-490.0,0.00033698,7]
[367084631,1750651890583,-490.0,0.00033698,7]
[367084632,1750651890593,-490.0,0.00033698,7]
[367084633,1750651890603,-620.38,0.00033698,7]
[367084634,1750651890612,-490.0,0.00033698,7]
[367084635,1750651890622,-627.82,0.00033698,7]
[367084636,1750651890633,-684.73,0.00033698,7]
[367084637,1750651890642,-1622.93,0.00033698,7]
[367084638,1750651890652,-490.0,0.00033698,7]
[367084639,1750651890662,-1554.53,0.00033698,7]
[367084640,1750651890672,-490.0,0.00033698,7]
[367084641,1750651890682,-490.0,0.00033698,7]
[367084642,1750651890692,-286.30587761,0.00033698,7]
[367084643,1750651890702,-490.0,0.00033698,7]
[367084644,1750651890712,-939.1,0.00033698,7]
[367084645,1750651890722,-2040.05,0.00033698,7]
[367084646,1750651890731,-490.0,0.00033698,7]
[367084647,1750651890740,-1861.55,0.00033698,7]
[367084648,1750651890750,-290.0,0.00033698,7]
[367084649,1750651890760,-938.52,0.00033698,7]
[367084650,1750651890770,-490.0,0.00033698,7]
[367084651,1750651890779,-17425.81,0.00033698,7]
[367084652,1750651890789,-810.08,0.00033698,7]
[367084653,1750651890798,-685.74,0.00033698,7]
[367084654,1750651890807,-1997.24,0.00033698,7]
[367084655,1750651890817,-1969.82,0.00033698,7]
[367084656,1750651890827,-490.0,0.00033698,7]
[367084657,1750651890836,-490.0,0.00033698,7]
[367084658,1750651890846,-4636.86,0.00033698,7]
[367084659,1750651890855,-490.0,0.00033698,7]
[367084660,1750651890865,-554.01,0.00033698,7]
[367084661,1750651890874,-699.42,0.00033698,7]
[367084662,1750651890883,-490.0,0.00033698,7]
[367084663,1750651890893,-1274.23,0.00033698,7]
[367084664,1750651890902,-2357.27,0.00033698,7]
[367084665,1750651890912,-490.0,0.00033698,7]
[367084666,1750651890922,-490.0,0.00033698,7]
[367084667,1750651890931,-1208.76,0.00033698,7]
[367084668,1750651890941,-490.0,0.00033698,7]
[367084669,1750651890950,-490.0,0.00033698,7]
[367084670,1750651890960,-536.23,0.00033698,7]
[367084671,1750651890969,-725.94,0.00033698,7]
[367084672,1750651890979,-3311.62,0.00033698,7]
[367084673,1750651890988,-495.68,0.00033698,7]
[367084674,1750651890998,-699.62,0.00033698,7]
[367084675,1750651891007,-1810.34,0.00033698,7]
[367084676,1750651891017,-1285.12,0.00033698,7]
[367084677,1750651891026,-308.63011231,0.00033698,7]
[367084678,1750651891036,-601.96,0.00033698,7]
[367084679,1750651891045,-531.81,0.00033698,7]
[367084680,1750651891055,-1951.48,0.00033698,7]
[367084681,1750651891064,-1363.46,0.00033698,7]
[367084682,1750651891078,-1115.88,0.00033698,7]
[367084683,1750651891087,-3469.87,0.00033698,7]
[367084684,1750651891097,-490.0,0.00033698,7]
[367084685,1750651891106,-395.28,0.00033698,7]
[367084686,1750651891117,-490.0,0.00033698,7]
[367084687,1750651891126,-1484.84,0.00033698,7]
[367084688,1750651891135,-7060.11,0.00033698,7]
[367084689,1750651891147,-508.37,0.00033698,7]
[367084690,1750651891156,-490.0,0.00033698,7]
[367084691,1750651891166,-490.0,0.00033698,7]
[367084692,1750651891175,-490.0,0.00033698,7]
[367084693,1750651891185,-744.38,0.00033698,7]
[367084694,1750651891195,-1933.87,0.00033698,7]
[367084695,1750651891204,-775.55,0.00033698,7]
[367084696,1750651891216,-1481.83,0.00033698,7]
[367084697,1750651891227,-1248.47,0.00033698,7]
[367084698,1750651891238,-992.33,0.00033698,7]
[367084699,1750651891248,-715.02,0.00033698,7]
[367084700,1750651891257,-1462.16,0.00033698,7]
[367084701,1750651891268,-609.8,0.00033698,7]
[367084702,1750651891278,-718.82,0.00033698,7]
[367084703,1750651891287,-838.62,0.00033698,7]
[367084704,1750651891296,-3239.91,0.00033698,7]
[367084705,1750651891305,-525.56,0.00033698,7]
[367084706,1750651891315,-490.0,0.00033698,7]
[367084707,1750651891324,-1485.85,0.00033698,7]
[367084708,1750651891333,-823.71,0.00033698,7]
[367084709,1750651891343,-1658.66,0.00033698,7]
[367084710,1750651891353,-490.0,0.00033698,7]
[367084711,1750651891363,-1123.79,0.00033698,7]
[367084712,1750651891457,-989.88,0.00033698,7]
[367084713,1750651891467,-490.0,0.00033698,7]